Cogmind - Beta 17 @@@ ROGUE MODE // 2026.06.27 @ 01:28:00 Player: Arzee Result: Destroyed by H-55 Commando with Gauss Rifle Performance ------------- Evolutions (3) 1500 Regions Visited (6) 1200 Robots Destroyed (51) 255 Value Destroyed (1328) 1328 Prototype IDs (3) 60 Alien Tech Used (0) 0 Bonus (0) 0 TOTAL SCORE: 4343 Bonus ------- None Cogmind --------- Core Integrity 0/700 Matter 117/300 Energy 100/100 System Corruption 16% Temperature Cool (0) Movement Core (50) Location -7/Factory Parts ------- > --- POWER (1) -------- (None) > --- PROPULSION (6) --- (None) > --- UTILITY (4) ------ (None) > --- WEAPON (2) ------- Heavy Flail > --- INVENTORY (5) ---- Advanced Weight Redist. System Recalibrator Peak State ------------ > --- POWER ------------ Light Nuclear Core > --- PROPULSION ------- Aluminum Leg Aluminum Leg Aluminum Leg Aluminum Leg Aluminum Leg Aluminum Leg > --- UTILITY ---------- Improved Heat Sink Large Storage Unit Trap Scanner Core Analyzer > --- WEAPON ----------- Enhanced Autogun Mass Driver > --- INVENTORY -------- Light Treads Titanium Leg Huge Storage Unit Improved Sensor Array Reflective Plating Reflective Plating Enhanced Autogun Maul [Rating: 32] Favorites ----------- Power Ion Engine Engine Ion Engine Power Core Light Nuclear Core Propulsion Aluminum Leg Treads Light Treads Leg Aluminum Leg Hover Unit Gravmag System Utility Medium Storage Unit Device Improved Heat Sink Storage Medium Storage Unit Processor Advanced Visual Processing Unit Protection Light Armor Plating Weapon Light Assault Rifle Energy Gun Lightning Gun Ballistic Gun Light Assault Rifle Ballistic Cannon Mass Driver Launcher Grenade Launcher Impact Weapon Maul Build | -11 -10 -10 -8 -7 -7 -7 ------- Run | Yrd Mat Sub Mat Fac Was Fac Slots Evolved 6 | . . . 4 2 . . Power . | . . . . . . . Propulsion 4 | . . . 2 2 . . Utility 2 | . . . 2 . . . Weapon . | . . . . . . . Parts Attached 57 | 5 5 4 24 4 1 14 Power 6 | 1 1 1 2 . . 1 Engine 3 | 1 1 . 1 . . . Core 3 | . . 1 1 . . 1 Reactor . | . . . . . . . Propulsion 18 | 2 2 1 8 1 . 4 Treads 2 | . 2 . . . . . Leg 13 | 2 . 1 8 1 . 1 Wheel . | . . . . . . . Hover 3 | . . . . . . 3 Flight . | . . . . . . . Utility 18 | . 1 1 7 3 . 6 Device 6 | . . . 1 1 . 4 Storage 4 | . 1 1 1 1 . . Processor 4 | . . . 2 1 . 1 Hackware . | . . . . . . . Protection 4 | . . . 3 . . 1 Artifact . | . . . . . . . Weapon 15 | 2 1 1 7 . 1 3 Energy Gun 2 | 1 . . . . . 1 Energy Cannon . | . . . . . . . Ballistic Gun 7 | 1 1 . 5 . . . Ballistic Cannon 1 | . . . . . 1 . Launcher 2 | . . 1 1 . . . Special Weapon . | . . . . . . . Impact Weapon 3 | . . . 1 . . 2 Slashing Weapon . | . . . . . . . Piercing Weapon . | . . . . . . . Special Melee Weapon . | . . . . . . . Unidentified Prototypes 3 | . . . 2 . . 1 Corrupted Parts 1 | . . . . . . 1 System Corruption 9 | . . . . . . 9 Parts Lost 26 | . 1 3 10 . 4 8 Power 4 | . 1 1 1 . . 1 Propulsion 11 | . . . 5 . 2 4 Utility 5 | . . . 2 . 1 2 Weapon 6 | . . 2 2 . 1 1 Highest Loss Streak 5 | . 1 2 4 . 4 5 To Critical Strikes . | . . . . . . . Average Backups 7 | . 11 10 8 6 7 3 Power . | . . . . . . . Propulsion 4 | . 7 8 5 2 1 . Utility 1 | . 1 1 1 3 3 1 Weapon 1 | . 1 . 1 1 1 . Tool/Special . | . . . . . . . Unused Backups 9 | . . 4 1 . 2 2 Power 1 | . . 1 . . . . Propulsion 5 | . . 1 1 . 1 2 Utility 2 | . . 1 . . 1 . Weapon 1 | . . 1 . . . . Tool/Special . | . . . . . . . Average Slot Usage (%) 70 | . 82 73 86 93 72 26 Engine 6 | . 14 3 4 . . . Core 1 | . . 5 3 7 4 . Treads 8 | . 27 7 . . . . Leg 15 | . . 21 34 44 33 . Hover 1 | . . . . . . 6 Device 2 | . . . 2 13 11 4 Storage 8 | . 11 14 9 7 5 . Processor 4 | . . . 8 4 5 5 Protection 2 | . . . 6 . . . Energy Gun 1 | . . . . . . 4 Ballistic Gun 13 | . 27 9 11 7 4 . Launcher 1 | . . 11 2 . . . Impact Weapon 1 | . . . 2 7 1 3 Peak Build Rating 32 | 5 7 10 27 27 32 24 Average Rating 12 | 3 6 6 17 24 21 13 On Entrance 9 | . 5 7 5 22 27 1 Avg Prop Armor Cover (%) 8 | . . . . . . 8 Naked Turns 85 | . . . . . 32 53 Heaviest Build 49 | 5 48 49 36 34 40 11 Greatest Support 60 | 20 40 40 40 60 60 18 Greatest Overweight (x) 1 | . 1 1 1 . . 1 Average Overweight (x) . | . . . . . . . Largest Inventory Capacity 25 | 5 20 20 15 25 15 5 Average Capacity 11 | 5 17 12 10 15 12 5 Most Carried 16 | 1 16 16 10 8 8 5 Average Carried 7 | . 11 10 8 6 6 3 Final Capacity 20 | 5 20 10 15 15 5 5 Final Carried 16 | 1 16 10 9 7 5 2 Class Distribution -------------------- 80% | Mutant 19% | Scavenger-Mutant Dominant Class ---------------- Mutant | -10/Materials Mutant | -10/Subcaves Mutant | -8/Materials Mutant | -7/Factory Scavenger-Mutant | -7/Waste Mutant | -7/Factory Resources | -11 -10 -10 -8 -7 -7 -7 ----------- Run | Yrd Mat Sub Mat Fac Was Fac Matter Collected 1463 | 191 199 41 828 . . 204 Remotely . | . . . . . . . Salvage Created 1653 | 61 282 86 932 . . 292 Parts 96 | 6 24 12 47 . . 7 Haulers Intercepted 5 | . . . 4 . . 1 Recyclers Shooed . | . . . . . . . Parts Field Recycled . | . . . . . . . Retrieved Matter . | . . . . . . . Parts Self-Destructed 14 | . . 14 . . . . Prevented . | . . . . . . . Parts Restored . | . . . . . . . Kills | -11 -10 -10 -8 -7 -7 -7 ------- Run | Yrd Mat Sub Mat Fac Was Fac Combat Hostiles Destroyed 38 | 1 9 6 18 . . 4 Melee 3 | . . . 1 . . 2 Guns 24 | 1 9 1 13 . . . AOE 5 | . . 5 . . . . Classes Destroyed 10 | 2 3 1 3 . . 1 Builder 2 | . 1 . 1 . . . Tunneler 2 | 1 . . . . . 1 Hauler 5 | . . . 4 . . 1 Recycler 1 | . . . 1 . . . Watcher 3 | . 1 . 1 . . 1 Swarmer 13 | . 3 3 7 . . . Grunt 18 | 1 6 . 9 . . 2 Sentry 3 | . . . 2 . . 1 Programmer 1 | . . . . . . 1 Subdweller 3 | . . 3 . . . . Best Kill Streak 5 | 2 3 3 5 . . 3 Combat Bots Only 4 | 1 3 3 4 . . 3 Max Kills in Single Turn 2 | 1 1 2 2 . . 1 Gunslinging 1 | . . . 1 . . . Exploded 2 | . . 2 . . . . Melee 1 | . . . 1 . . 1 Uniques/NPCs Destroyed . | . . . . . . . Combat | -11 -10 -10 -8 -7 -7 -7 -------- Run | Yrd Mat Sub Mat Fac Was Fac Hostile Shots Fired 383 | 6 58 38 144 . 4 133 Missed 110 | 2 15 13 43 . . 37 Hits 273 | 4 43 25 101 . 4 96 Melee 4 | . . . . . 4 . Projectile 269 | 4 43 25 101 . . 96 Critical Strikes 10 | . . 2 3 . 1 4 Damage Taken 3761 | 46 459 365 1482 . 172 1237 Core 967 | . 96 54 115 . 52 650 Absorbed by Shields . | . . . . . . . Ignored by Resistances 10 | . . . 10 . . . Core Remaining (%) 73 | 100 . 40 79 . . . Volleys Fired 159 | 9 44 18 81 . 7 . Largest 2 | 2 2 2 2 . 2 . Hottest 72 | 60 40 50 50 . 72 . Shots Fired 263 | 18 88 23 121 . 13 . Gun 247 | 18 88 13 121 . 7 . Cannon 6 | . . . . . 6 . Launcher 10 | . . 10 . . . . Special . | . . . . . . . Kinetic 244 | 9 88 13 121 . 13 . Thermal 9 | 9 . . . . . . Explosive 10 | . . 10 . . . . Electromagnetic . | . . . . . . . Robot Hit Streak 11 | 10 5 9 11 . 3 . Robot Miss Streak 10 | 2 10 4 4 . 2 . Penetration Max . | . . . . . . . Secondary Targets 5 | . 2 . 3 . . . Max Gunslinging Chain 1 | . 1 . 1 . . . Shots Hit Robots 195 | 12 44 13 94 . 10 22 Core Hits 62 | 3 20 8 27 . 3 1 Critical Kills 3 | . . . 2 . . 1 Critical Parts Destroyed 11 | . 1 . 4 . 1 5 Critical Strikes 15 | . 1 . 6 . 2 6 Destroy 2 | . 1 . 1 . . . Smash 13 | . . . 5 . 2 6 Melee Attacks 61 | . . . 20 . 3 38 Impact 61 | . . . 20 . 3 38 Slashing . | . . . . . . . Piercing . | . . . . . . . Sneak Attacks 3 | . . . 2 . . 1 Combat Hostiles . | . . . . . . . Follow-up Attacks . | . . . . . . . Damage Inflicted 4746 | 117 572 498 2179 . 351 1029 Guns 2172 | 117 572 33 1398 . 52 . Cannons 160 | . . . . . 160 . Explosions 465 | . . 465 . . . . Melee 1917 | . . . 781 . 139 997 Ramming 32 | . . . . . . 32 Kinetic 2267 | 52 572 33 1398 . 212 . Thermal 65 | 65 . . . . . . Explosive 465 | . . 465 . . . . Electromagnetic . | . . . . . . . Impact 1917 | . . . 781 . 139 997 Slashing . | . . . . . . . Piercing . | . . . . . . . Highest Corruption 16 | . . . 4 . 10 16 Average Corruption 6 | . . . 3 . 10 9 Corruption Purged 4 | . . . . . . 4 Corruption Blocked . | . . . . . . . Effects 47 | . . . 20 . 6 21 Message Errors 11 | . . . 4 . 1 6 Matter Fused 11 | . . . 5 . 1 5 Heat Flow Errors 8 | . . . 3 . 2 3 Energy Discharges 6 | . . . 3 . . 3 Parts Rejected 1 | . . . 1 . . . Data Loss (minor) 1 | . . . . . . 1 Data Loss (major) 3 | . . . 2 . . 1 Misfires 1 | . . . 1 . . . Misdirections 3 | . . . . . 1 2 Weapon Failures 2 | . . . 1 . 1 . Overload Shots . | . . . . . . . Overflow Damage 806 | . . . 277 . 49 480 Projectiles . | . . . . . . . Explosions . | . . . . . . . Melee 806 | . . . 277 . 49 480 Knockbacks 9 | . . . 3 . . 6 Impact 9 | . . . 3 . . 6 Kinetic . | . . . . . . . Secondary . | . . . . . . . Self-Inflicted Damage 51 | . . 37 . . . 14 Shots 2 | . . 2 . . . . Rammed 12 | . . . . . . 12 Targets Rammed 12 | . . . . . . 12 Kicked . | . . . . . . . Crushed . | . . . . . . . Highest Temperature 333 | 84 15 . 333 . 225 202 Average Temperature 100 | 47 6 . 131 . 113 92 Received Heat Transfer 1260 | 24 204 12 612 . . 408 Effects 1 | . . . 1 . . . Damage (minor) 1 | . . . 1 . . . Siege Activations . | . . . . . . . Martial Activations . | . . . . . . . Shielding Activations . | . . . . . . . Robots Disrupted . | . . . . . . . Combat Hostiles . | . . . . . . . Robots Corrupted 10 | . . . 5 . . 5 Combat Hostiles 6 | . . . 4 . . 2 Parts Fried 10 | . . . 4 . . 6 Impact Corruptions 25 | . . . 9 . 1 15 Robots Melted . | . . . . . . . Combat Hostiles . | . . . . . . . Parts Melted . | . . . . . . . Heat Transferred 150 | 150 . . . . . . Parts Sabotaged . | . . . . . . . Parts Stolen . | . . . . . . . Parts Stripped . | . . . . . . . Power Chain Reactions . | . . . . . . . Alert | -11 -10 -10 -8 -7 -7 -7 ------- Run | Yrd Mat Sub Mat Fac Was Fac Maximum Alert Level . | . . . . . . . Low Security (%) 100 | 100 100 . 100 100 100 100 Level 1 . | . . . . . . . Level 2 . | . . . . . . . Level 3 . | . . . . . . . Level 4 . | . . . . . . . Level 5 . | . . . . . . . High Security . | . . . . . . . Max Security . | . . . . . . . Peak Influence 199 | 15 105 . 153 42 7 199 Initial 42 | . 3 . . 42 7 . Average 48 | 2 28 . 73 34 1 58 Influence Increases 1152 | 25 222 70 475 . 3 357 Destroy 0b10 Robot/C 700 | 20 180 60 360 . . 80 Destroy 0b10 Robot/NC 65 | 5 10 . 35 . . 15 Destroy Leader 156 | . 32 10 80 . . 34 Destroy Structure 6 | . . . . . 3 3 Partial Spotted 15 | . . . . . . 15 Lose Combat Pursuer 210 | . . . . . . 210 Influence Decreases 986 | 20 202 95 382 71 25 191 Entered New Map 81 | . 2 13 . 51 15 . Time Decay 711 | 20 200 60 292 20 8 111 Lost Part 194 | . . 22 90 . 2 80 Squads Dispatched 11 | . 1 . 6 . . 4 Investigation 1 | . 1 . . . . . Extermination 1 | . . . . . . 1 Reinforcement 5 | . . . 2 . . 3 Assault . | . . . . . . . Garrison 4 | . . . 4 . . . Intercept . | . . . . . . . Searches Triggered . | . . . . . . . Construction Impeded . | . . . . . . . Haulers Reinforced 1 | . . . . . . 1 Active Scanning Responses . | . . . . . . . Cargo Convoy Interrupts . | . . . . . . . Stealth | -11 -10 -10 -8 -7 -7 -7 --------- Run | Yrd Mat Sub Mat Fac Was Fac Distress Signals 6 | . 3 . 3 . . . Communications Jammed . | . . . . . . . Distress Signals . | . . . . . . . Times Spotted 94 | 1 18 6 40 . 5 24 Peak Tracking Total 6 | 1 5 3 6 . 5 6 Tactical Retreats 6 | . . . . . . 6 Traps | -11 -10 -10 -8 -7 -7 -7 ------- Run | Yrd Mat Sub Mat Fac Was Fac Traps Triggered 6 | . 1 . 3 1 . 1 Indirectly . | . . . . . . . Trap Hack Attempts . | . . . . . . . Triggered . | . . . . . . . Disarmed . | . . . . . . . Reprogrammed . | . . . . . . . Reused . | . . . . . . . Traps Extracted . | . . . . . . . Installed . | . . . . . . . Triggered . | . . . . . . . Machines | -11 -10 -10 -8 -7 -7 -7 ---------- Run | Yrd Mat Sub Mat Fac Was Fac Machines Disabled . | . . . . . . . Max in Single Turn . | . . . . . . . Machines Repaired . | . . . . . . . Machines Dismantled . | . . . . . . . Machines Sabotaged . | . . . . . . . Overloaded Fab Kills . | . . . . . . . Hacking | -11 -10 -10 -8 -7 -7 -7 --------- Run | Yrd Mat Sub Mat Fac Was Fac Machines Accessed 2 | . 1 . 1 . . . Terminals . | . . . . . . . Fabricators . | . . . . . . . Repair Stations . | . . . . . . . Recycling Units 1 | . 1 . . . . . Scanalyzers 1 | . . . 1 . . . Garrison Access . | . . . . . . . Total Hacks 4 | . 1 . 3 . . . Successful 4 | . 1 . 3 . . . Failed . | . . . . . . . Catastrophic . | . . . . . . . Database Lockouts . | . . . . . . . Manual 2 | . 2 . . . . . Terminals . | . . . . . . . Fabricators . | . . . . . . . Repair Stations . | . . . . . . . Recycling Units 1 | . 1 . . . . . Scanalyzers 3 | . . . 3 . . . Garrison Access . | . . . . . . . Terminal Hacks . | . . . . . . . Fabricator Hacks . | . . . . . . . Repair Station Hacks . | . . . . . . . Recycling Unit Hacks 1 | . 1 . . . . . Retrieve Components 1 | . 1 . . . . . Scanalyzer 3 | . . . 3 . . . Retrieve Study 3 | . . . 3 . . . Garrison Access Hacks . | . . . . . . . Unauthorized Hacks . | . . . . . . . Terminals . | . . . . . . . Fabricators . | . . . . . . . Repair Stations . | . . . . . . . Recycling Units . | . . . . . . . Scanalyzers . | . . . . . . . Garrison Access . | . . . . . . . Data Cores Recovered . | . . . . . . . Used . | . . . . . . . Hacking Detections 1 | . 1 . . . . . Full Trace Events . | . . . . . . . Feedback Events . | . . . . . . . Feedback Blocked . | . . . . . . . Robot Schematics Acquired . | . . . . . . . Robots Built . | . . . . . . . Authchips . | . . . . . . . Time . | . . . . . . . Total Robot Build Rating . | . . . . . . . Part Schematics Acquired . | . . . . . . . Parts Built . | . . . . . . . Authchips . | . . . . . . . Time . | . . . . . . . Total Part Build Rating . | . . . . . . . Part Studies Acquired 3 | . . . 3 . . . Parts Repaired . | . . . . . . . Time . | . . . . . . . Parts Recycled . | . . . . . . . Recycled Matter . | . . . . . . . Retrieved Matter . | . . . . . . . Retrieved Components 2 | . 2 . . . . . Parts Scanalyzed . | . . . . . . . Part Schematics Acquired . | . . . . . . . Parts Damaged . | . . . . . . . Bothacking | -11 -10 -10 -8 -7 -7 -7 ------------ Run | Yrd Mat Sub Mat Fac Was Fac Used RIF Installer . | . . . . . . . Robots Hacked . | . . . . . . . Non-combat . | . . . . . . . Combat . | . . . . . . . Robot Hacks Applied . | . . . . . . . Relay Couplers Released . | . . . . . . . Fabnet Peak Effective % . | . . . . . . . Robots Rewired . | . . . . . . . Allies Hacked . | . . . . . . . Hacks Repelled . | . . . . . . . Allies | -11 -10 -10 -8 -7 -7 -7 -------- Run | Yrd Mat Sub Mat Fac Was Fac Total Allies . | . . . . . . . Largest Group . | . . . . . . . Highest-Rated Group . | . . . . . . . Highest-Rated Ally . | . . . . . . . Total Orders . | . . . . . . . Ally Attacks . | . . . . . . . Total Damage . | . . . . . . . Kills . | . . . . . . . Allies Corrupted . | . . . . . . . Allies Melted . | . . . . . . . Intel | -11 -10 -10 -8 -7 -7 -7 ------- Run | Yrd Mat Sub Mat Fac Was Fac Active Infowar (turns) 816 | . . . 666 46 78 26 Optics 682 | . . . 666 16 . . Sensors 26 | . . . . . . 26 Traps 117 | . . . . 39 78 . Robot Analysis Total . | . . . . . . . Derelict Logs Recovered 2 | . . 2 . . . . Drone Launches . | . . . . . . . Drone Recoveries . | . . . . . . . Exploration | -11 -10 -10 -8 -7 -7 -7 ------------- Run | Yrd Mat Sub Mat Fac Was Fac Turns Passed 2537 | 108 745 232 765 46 110 531 Spaces Moved 1644 | 74 274 138 363 34 110 651 Core 389 | 19 . . . . 65 305 Treads 272 | . 261 11 . . . . Legs 646 | 55 13 127 363 34 45 9 Wheels . | . . . . . . . Hover 337 | . . . . . . 337 Flight . | . . . . . . . Fastest Speed 50 | 50 120 120 105 105 50 50 Average Speed 105 | 102 218 129 109 105 72 56 Slowest Speed 240 | 120 240 240 175 105 105 120 Overloaded Moves . | . . . . . . . Propulsion Burnouts . | . . . . . . . Robots Hopped . | . . . . . . . Potential Cave-ins 2 | . . . . . . 2 Cave-ins Triggered . | . . . . . . . Exploration Rate (%) 28 | 7 53 18 32 1 74 17 Regions Visited 6 Branch Regions 1 Pre-discovered Areas 2 | . . 2 . . . . Known Exits Taken . | . . . . . . . Unknown Exits Taken 4 | 1 1 1 1 . . . Scrap Searched . | . . . . . . . Spaces Dug 5 | . . . . . . 5 Terrain Destroyed 51 | . . 43 . . 3 5 Melee 5 | . . . . . . 5 Projectile 3 | . . . . . 3 . AOE 43 | . . 43 . . . . Terrain Rammed . | . . . . . . . Walls Destroyed . | . . . . . . . Machines Disabled . | . . . . . . . Actions | -11 -10 -10 -8 -7 -7 -7 --------- Run | Yrd Mat Sub Mat Fac Was Fac Total 2120 | 88 340 173 594 45 122 758 Wait 105 | . . 3 77 . . 25 Move 1639 | 73 273 137 362 34 109 651 Hop . | . . . . . . . Pick Up 46 | 1 17 2 13 2 1 10 Fast Attach 23 | 5 1 1 9 2 . 5 Attach 33 | . 1 3 14 4 1 10 Detach 2 | . . . 1 . . 1 Swap 15 | . 3 1 10 . 1 . Drop 25 | . 1 8 7 3 . 6 Fire 159 | 9 44 18 81 . 7 . Melee 61 | . . . 20 . 3 38 Ram 12 | . . . . . . 12 Kick . | . . . . . . . Crush . | . . . . . . . Escape Stasis . | . . . . . . . Rewire . | . . . . . . . Trap . | . . . . . . . Miscellaneous . | . . . . . . . Route ------- -11/Scrapyard -10/Materials (discovered 2 exits: [*Min] / [*Sub]) -10/Subcaves -8/Materials -7/Factory -7/Waste -7/Factory History --------- Turn | Location | Event 2 | -11/Scrapyard | Met Revision 17 64 | -11/Scrapyard | Discovered new exit (range 8) 109 | -11/Scrapyard | Entered Materials 334 | -10/Materials | Build established: Mutant 457 | -10/Materials | Discovered new exit (range 5) 519 | -10/Materials | Discovered new exit (range 8) 854 | -10/Materials | Entered Subcaves 855 | -10/Subcaves | Approached by a straggling Scientist 859 | -10/Subcaves | Learned location of Zion (-6) 861 | -10/Subcaves | Met a Zionite searching for "candidates" 939 | -10/Subcaves | Lost 3 allies 939 | -10/Subcaves | Learned Materials terminal intel 985 | -10/Subcaves | Ambushed by Subdweller buried in earth 990 | -10/Subcaves | Core integrity fell below 50% 1036 | -10/Subcaves | Shifting Twisted Machinery released Sub. Machine Gun 1053 | -10/Subcaves | Shifting Twisted Machinery released Sub. Laser 1078 | -10/Subcaves | Discovered new exit (range 5) 1086 | -10/Subcaves | Entered Materials 1086 | -8/Materials | Evolved 4 slots: Propulsion x2, Utility x2 1087 | -8/Materials | Loaded intel: 12 terminal locations 1245 | -8/Materials | Garrison activated, responded to threat 1471 | -8/Materials | Garrison activated, responded to threat 1657 | -8/Materials | Lost 4 parts (1p3n) 1834 | -8/Materials | Discovered new exit (range 9) 1851 | -8/Materials | Entered Factory 1851 | -7/Factory | Evolved 2 slots: Propulsion x2 1897 | -7/Factory | Sucked down chute 1897 | -7/Factory | Entered Waste 1912 | -7/Waste | EMP discharged 1912 | -7/Waste | System corruption reached 10% 1912 | -7/Waste | Spotted C-40 Crusher 1958 | -7/Waste | Spotted C-40 Crusher 1965 | -7/Waste | Crushed by Compactor (1 part destroyed, 2 dropped) 1968 | -7/Waste | Crushed by Compactor (1 part destroyed, 1 dropped) 1971 | -7/Waste | Crushed by Compactor (1 part destroyed, 2 dropped) 1974 | -7/Waste | Crushed by Compactor (1 part destroyed, 1 dropped) 1975 | -7/Waste | Released all parts (4) 1981 | -7/Waste | Spotted C-40 Crusher 1994 | -7/Waste | Spotted C-40 Crusher 1998 | -7/Waste | Spotted C-40 Crusher 2000 | -7/Waste | Discovered new exit (range 16) 2004 | -7/Waste | Spotted C-40 Crusher 2005 | -7/Waste | Lost 4 parts (2n1u1w) 2007 | -7/Waste | Entered Factory 2437 | -7/Factory | Released all parts (2) 2444 | -7/Factory | Core integrity fell below 50% 2468 | -7/Factory | Lost 5 parts (3n1u1w) 2515 | -7/Factory | Core integrity fell below 20% 2538 | -7/Factory | Destroyed by H-55 Commando with Gauss Rifle Last Messages --------------- 02512_ Y-54 Guardian system terminally corrupted. 02513_ Acquired 55 matter. 02514_ Slug penetrates Wall. 02516_ ALERT: Hostiles spotted, dispatching reinforcements to Terminal F005. 02517_ Slug penetrates Wall. 02517_ Mic. Nuclear Core destroyed. 02520_ Slug penetrates Wall. 02522_ Destroyed Imp. Heat Sink. 02522_ G-47 Trooper system corrupted by crushing effect. 02523_ Slug penetrates Wall. 02523_ G-47 Trooper IFF system glitched. 02524_ G-47 Trooper knocked back. 02526_ Slug penetrates Wall. 02527_ G-47 Trooper misfires. 02528_ System corrupted: Matter fused (-9). 02532_ Penetrated by Slug. 02532_ Imp. Carbon-fiber Leg destroyed. Map ----- +----------------------------------------------------+ | ?????????????# """" """" #^ # | | ?????????????# """" """" # # | | ?????????????# """" """" # # | | ?????????????# """" """" # # | | ?????????????# """" """" #/ # | | ?????????????# """ """"*# # | | ?????????????# =/% + | | ?????????????# =#! # | | ?????????????# # # | | ?????????????############## # | | ????????????????????# ??# # | | ????????????????????#" [?# # | | ?#######????????????#" [?# # | | ?# #????????????#" # # | | ?# #????????????#T # # | | ?# ##############" ! + # | | ?# # #" # # | | ?# #"""""" #" # # | | ?# #"""""" # ?# # | | ?# #?""""" # * ?# # | | ?# #"""""" # ??# *%# | | ?# #"""""" # ??# # | | ?# #"""""" [ ###???# # | | ?# #"""""" ! #?????# # | | ?# #"""""" #?????# # | | ?#####@#"""""" #?????# # | | ?????#[h #?????# # | | ?????#g# #?????# # | | ?????# #######+#+########## # | | ?????# | | ?????# ##### | | ?????# #???# | | ?????# #???# | | ????? ???# | | ????? ???####+########## | | ????? ?????????????????# | | ????? ?????????????????# "" | | ????? ?????????????????# "" | | ?????#+#?????????????????# "" | | ?????? ??????????????????# | | ?????????????????????????# * | | ?????????????????????????# | | ?????????????????????????# | | ?????????????????????????# | | ?????????????????????????? ?? | | ??????????????????????????????? | | ??????????????????????????????? | | ??????????????????????????????? | | ??????????????????????????????? | | ??????????????????????????????? | +----------------------------------------------------+ Best States ------------- Heat Dissipation 48 Energy Generation 15 Energy Capacity 265 Matter Stores 300 Matter Capacity 300 Sight Range 20 Robot Scan Range 15 Terrain Scan Density 10 Additional Mass Support 9 Armor Coverage 150 Resistance: TH 10 Evasion (%) 55 Targeting Accuracy 8 Core Analysis 6 Recoil Reduction 2 Item Schematics ----------------- None Robot Schematics ------------------ None Fabricated ------------ Nothing Repaired ---------- Nothing Studied --------- Grenade Launcher | -8/Materials | Hacked Hvy. Assault Rifle | -8/Materials | Hacked Aluminum Leg | -8/Materials | Hacked Alien Tech Used ----------------- None Achievements -------------- Do Not Disturb Challenges ------------ None Game ------ Seed SwarmVampiricTreads Manual? 0 Play Time 00:32:52 Cumulative 63.5 hours Start 2026.06.27 @ 00:56:02 End 2026.06.27 @ 01:28:00 Sessions 1 Manual Loads 0 Difficulty Rogue Special Mode None Game No. 71 Rogue 17 Adventurer 54 Explorer 0 Win Type - Total 1 Types 1/0/0/0/0/0/0/0/0/0 Lore% 32 Gallery% 40 Achievement% 38 Wizard Run 0 Options --------- Layout 1 ASCII 0 Keyboard 0 Movement Mouse Keybinds 1 Fullscreen 1 Font 24/Terminus Map View 50x35 Zoom Use 0% Tactical HUD 1 Map Filters NONE Filters NONE Steam 1 RUN: 8f8e68e5-ed25-4a5e-9ba5-e03f94860420